{"text_format":"3","workbook":"xlsx","n_sheets":1,"sheets":["Award formula"],"read":"whole","date_system":"1900"}

{"sheet":"Award formula","index":0,"n_rows":96,"n_cols":15,"rows_kept":96,"merged":[[0,0,0,14],[1,0,1,14],[2,0,2,14],[3,0,3,14],[4,0,4,14],[5,0,5,14],[6,0,6,14],[7,0,7,14],[33,0,33,14],[59,0,59,14],[85,0,85,14],[86,0,86,14],[87,1,87,7],[88,1,88,7],[89,1,89,7],[90,1,90,7],[91,1,91,7],[92,0,92,14],[93,1,93,7],[94,0,94,8],[95,0,95,8],[95,9,95,11],[95,12,95,14]]}
[" 20-213-ITB  -  ATTACHMENT A - BID FORM"]
[]
["PRICING SHEET"]
[]
["PROVISION OF PARTS AND ELECTRIC MOTOR REPAIR SERVICES FOR THE ARLINGTON COUNTY WATER POLLUTION CONTROL BUREAU (WPCB)\n FOR A FIVE (5) YEAR PERIOD\n"]
["BIDDERS SHALL PROVIDE THEIR BID PRICES IN THE CELLS HIGHLIGHTED IN BLUE BELOW.  BIDDERS SHALL INCLUDE A BID PRICE FOR ALL ITEMS. FAILURE TO PROVIDE A PRICE FOR ALL ITEMS, OR ANY MODIFICATIONS OR ADDITIONS TO THE BID FORM MAY RESULT IN BID REJECTION."]
[]
["SECTION I:   INSPECTION/TESTING  MOTORS - PRICING PROVIDED SHALL INCLUDE ALL LABOR, MATERIALS AND INCIDENTAL EXPENSES NECESSARY TO COMPLETE THE WORK"]
["ITEM NO.","ITEM DESCRIPTION","MODEL","Motor Brg Shaft End","Motor Brg Oth End","HP","RPM","Ph/Hz/Volt","ESTIMATED ANNUAL USAGE","YEAR 1                                          UNIT PRICE","YEAR 1                                          EXTENDED PRICE","YEAR 2                                            UNIT PRICE","YEAR 2                                            EXTENDED PRICE","TOTAL UNIT","TOTAL EXTENDED PRICE"]
[]
[1,"SAT1-MIXR-A-NORTH, SEC AERATION TANK MIXER-01 A-PASS S, METER 53012, Siemens, horizontal, direct drive, frame 213T, constant speed, weatherproof","MD000637","6308-ZZ","6308-ZZ","7.5",1740,"3/60/460",5,null,{"$f":"SUM(I11*J11)","v":0},null,{"$f":"SUM(I11*L11)","v":0},null,{"$f":"SUM(I11*N11)","v":0}]
[2,"SAT1-MIXR-A-SOUTH, SEC AERATION TANK MIXER-01 A-PASS N, METER 53011, Siemens, horizontal, direct drive, frame 215T, constant speed, weatherproof","MD000638","40BC02JP3","30BC02JP3","10",1740,"3/60/460",3,null,{"$f":"SUM(I12*J12)","v":0},null,{"$f":"SUM(I12*L12)","v":0},null,{"$f":"SUM(I12*N12)","v":0}]
[3,"DWB-DRIVE-BINBTTM-03A, DRIVE, DEWATERING BIN BOTTOM CONV, #3 WEST SCREW, Baldor, horizontal, constant torque, belt drive, frame 326-TZ, variable speed","M12N042W693Gl","BG6312B03","BG6311B03","15",1200,"3/60/460",3,null,0,null,0,null,0]
[4,"DWB-FAN-AMMONIASCRB-01, FAN, 30\",  AMMONIA SCRUBBER #1, TECO Westinghouse, horizontal, belt drive, frame256T, constant speed","NP0204","45BC03J30X","45BC03J30X","20",1760,"3/60/460",1,null,0,null,0,null,0]
[5,"PTB-PUMP-GRIT-02, PUMP, PTB GRIT #2, US Motors, horizontal, belt drive, frame 284T, constant speed","7970","6310-2Z-J/C3","6210-2Z-J/C3","25",1775,"3/60/460",1,null,0,null,0,null,0]
[6,"DWB-MTR-CENT-01-40HP, MOTOR, #1 CENTRIFUGE SCROLL 40 HP, Magnetek, horizontal, belt drive, frame 324T, variable speed","CJB5S","312SF","210SF","40",1770,"3/60/460",1,null,0,null,0,null,0]
[7,"WIN-MTR-PUMP-01, MOTOR, PUMP #1, WINDY RUN PUMP STATION, US Motors, vertical, direct drive, frame 326VP, variable speed, washdown","G42244","6312-J/C3","6211-2Z-J","50",1770,"3/60/230-460",2,null,0,null,0,null,0]
[8,"RRPS-MTR-PUMP-01, MOTOR, PUMP #1, US Motors, vertical, direct drive, frame 444VP, variable speed, washdown","R0620085377-0001-R0002","75BC03J3/6314-J","65BC03J3/6214-2Z-J","75",895,"3/60/460",1,null,0,null,0,null,0]
[9,"FEQ-MTR-PUMP-01, MOTOR, FLOW EQUALIZATION PUMP #1, Toshiba, horizontal, direct drive, frame 405T, variable speed, weatherproof","GJ4075Q1DEHH","6317C3","6313C3","75",1180,"3/60/460",2,null,0,null,0,null,0]
[10,"WSPSB-MTR-PUMP-RAS-07, MOTOR, RAS PUMP #7, US Motors, horizontal, direct drive, frame 447T, variable speed, washdown","TYPE TC1 ; ID# L08 20077396-100R-02","6220-JC3","6313-JC3","100",890,"3/60/460",1,null,0,null,0,null,0]
[11,"KWPS-MTR-PUMP-01, MOTOR, PUMP #1, US Motors, vertical, direct drive, frame 447VP, variable speed, washdown","R0620085356-0001 R 0004","75BC03J3","65BC03J3","100",900,"3/60/460",2,null,0,null,0,null,0]
[12,"NFF-MTR-FAN-FAF-01, MOTOR, ODOR CONTROL FAN, 100 HP, GE Motors, hroizontal, belt drive, frame 405T, constant speed","5KS405SAA2003","6316ZC3","6316ZC3","100",1785,"3/60/460",1,null,0,null,0,null,0]
[13,"DWB-FAN-SULFSCRB-02, FAN, 54\",SULFIDE SCRUBBER STAGE #2,OLD BLDG. SRCE, Reliance, horizontal, belt drive, frame 444T, constant speed","ID# 01MAN92588 C001 FD","90BCO3J3OX","90BCO3J3OX","125",1785,"3/60/460",1,null,0,null,0,null,0]
[14,"PAF-MTR-BLWR-01, MOTOR, CENTRIFUGAL BLOWER, POST AERATION 1, 125 HP, Emerson Motors, horizontal, direct drive, frame 444TS, constant speed","TYPE TCE; ID# P01 30169340-0001 R 0003","6313-J/C3","6313-J/C3","125",3575,"3/60/460",1,null,0,null,0,null,0]
[15,"FMRL-MTR-PUMP-01, MOTOR, FOUR MILE RUN PUMP #1, TECO, vertical, direct drive, frame 5007C, variable speed","TYPE ASVA-TK001 S/N KED48220-1","6320/NU324","6320/NU324","150",585,"3/60/460",1,null,0,null,0,null,0]
[16,"DWB-MTR-CENT-01-200HP, MOTOR, #1 CENTRIFUGE BOWL, 200 HP, Magnetek, horizontal, direct drive, frame 447T, variable speed",355443,6322,6314,"200",1780,"3/60/460",1,null,0,null,0,null,0]
[17,"PAF-MTR-PUMP-PEW-01, MOTOR, PLANT EFFLUENT WATER PUMP #1, US Motors, vertical, direct drive, frame 449VP, variable speed, weatherproof","TYPE JVC14; ID# M03 20069556-100R-03","29426 EJ","6219-J/C3","250",1750,"3/60/460",1,null,0,null,0,null,0]
[18,"ASE1-MTR-L1, MOTOR, ACTIVATED SLUDGE EFFLUENT PUMP #1, US Motors, vertical, direct drive, frame 5811P, variable speed, weatherproof","TYPE JVE14; ID# D03 99030767-001R-0Z","6226-JC3","7228BCB",300,591,"3/60/460",1,null,0,null,0,null,0]
[19,"WWFF-MTR-PUMP-N5, MOTOR, N5 PUMP, WET WEATHER FILTRATION FACILITY, US Motors, vertical, direct drive, frame 5811P, variable speed, corro-duty","5811P JVC14 - P/N-20112242","","","400",720,"3/60/460",1,null,0,null,0,null,0]
[20,"WWFF-MTR-PUMP-N3, MOTOR, N3 PUMP, WET WEATHER FILTRATION FACILITY, US Motors Titan, vertical, direct drive, frame 1680P, variable speed, weatherproof","ORDER # 873-08512 I/D NO. J521504 54-02157-443","6320","7230","500",705,"3/60/460",1,null,0,null,0,null,0]
[21,"SBB-MTR-BLWR-05, MOTOR, BLWR #5, HIGH PRESSURE, US Motors Titan, horizontal open sleeve bearing, direct drive, frame 5012S, constant speed","REFRENCE ORDER# 30101494\nCUSTOMER PN - HH00236-003-MTRM","","","700",1780,"3/60/4000",1,null,0,null,0,null,0]
[22,"SBB-MTR-BLWR-03, MOTOR, BLWR #3, SWING, US Motors Titan, horizontal open sleeve bearing, direct drive, frame 5012MS, constant speed","REFRENCE ORDER# 30101496\nCUSTOMER PN - HH00236-005-MTRM","","","800",1750,"3/60/4000",1,null,0,null,0,null,0]
[23,"SBB-MTR-BLWR-01, MOTOR, BLWR #1, LOW PRESSURE, US Motors Titan, horizontal open sleeve bearing, direct drive, frame 5012MS, constant speed","REFRENCE ORDER# 30101488\nCUSTOMER PN - HH00236-001-MTRM","","","900",1780,"3/60/4000",1,null,0,null,0,null,0]
["SECTION II:   RECONDITIONED MOTORS - PRICING PROVIDED SHALL INCLUDE ALL LABOR, MATERIALS AND INCIDENTAL EXPENSES NECESSARY TO COMPLETE THE WORK"]
["ITEM NO.","ITEM DESCRIPTION","MODEL","Motor Brg Shaft End","Motor Brg Oth End","HP","RPM","Ph/Hz/Volt","ESTIMATED ANNUAL USAGE","YEAR 1                                          UNIT PRICE","YEAR 1                                          EXTENDED PRICE","YEAR 2                                            UNIT PRICE","YEAR 2                                            EXTENDED PRICE","TOTAL UNIT","TOTAL EXTENDED PRICE"]
[]
[1,"SAT1-MIXR-A-NORTH, SEC AERATION TANK MIXER-01 A-PASS S, METER 53012, Siemens, horizontal, direct drive, frame 213T, constant speed, weatherproof","MD000637","6308-ZZ","6308-ZZ","7.5",1740,"3/60/460",5,null,{"$f":"SUM(I37*J37)","v":0},null,{"$f":"SUM(I37*L37)","v":0},null,{"$f":"SUM(I37*N37)","v":0}]
[2,"SAT1-MIXR-A-SOUTH, SEC AERATION TANK MIXER-01 A-PASS N, METER 53011, Siemens, horizontal, direct drive, frame 215T, constant speed, weatherproof","MD000638","40BC02JP3","30BC02JP3","10",1740,"3/60/460",3,null,{"$f":"SUM(I38*J38)","v":0},null,{"$f":"SUM(I38*L38)","v":0},null,{"$f":"SUM(I38*N38)","v":0}]
[3,"DWB-DRIVE-BINBTTM-03A, DRIVE, DEWATERING BIN BOTTOM CONV, #3 WEST SCREW, Baldor, horizontal, constant torque, belt drive, frame 326-TZ, variable speed","M12N042W693Gl","BG6312B03","BG6311B03","15",1200,"3/60/460",3,null,0,null,0,null,0]
[4,"DWB-FAN-AMMONIASCRB-01, FAN, 30\",  AMMONIA SCRUBBER #1, TECO Westinghouse, horizontal, belt drive, frame256T, constant speed","NP0204","45BC03J30X","45BC03J30X","20",1760,"3/60/460",1,null,0,null,0,null,0]
[5,"PTB-PUMP-GRIT-02, PUMP, PTB GRIT #2, US Motors, horizontal, belt drive, frame 284T, constant speed","7970","6310-2Z-J/C3","6210-2Z-J/C3","25",1775,"3/60/460",1,null,0,null,0,null,0]
[6,"DWB-MTR-CENT-01-40HP, MOTOR, #1 CENTRIFUGE SCROLL 40 HP, Magnetek, horizontal, belt drive, frame 324T, variable speed","CJB5S","312SF","210SF","40",1770,"3/60/460",1,null,0,null,0,null,0]
[7,"WIN-MTR-PUMP-01, MOTOR, PUMP #1, WINDY RUN PUMP STATION, US Motors, vertical, direct drive, frame 326VP, variable speed, washdown","G42244","6312-J/C3","6211-2Z-J","50",1770,"3/60/230-460",2,null,0,null,0,null,0]
[8,"RRPS-MTR-PUMP-01, MOTOR, PUMP #1, US Motors, vertical, direct drive, frame 444VP, variable speed, washdown","R0620085377-0001-R0002","75BC03J3/6314-J","65BC03J3/6214-2Z-J","75",895,"3/60/460",1,null,0,null,0,null,0]
[9,"FEQ-MTR-PUMP-01, MOTOR, FLOW EQUALIZATION PUMP #1, Toshiba, horizontal, direct drive, frame 405T, variable speed, weatherproof","GJ4075Q1DEHH","6317C3","6313C3","75",1180,"3/60/460",2,null,0,null,0,null,0]
[10,"WSPSB-MTR-PUMP-RAS-07, MOTOR, RAS PUMP #7, US Motors, horizontal, direct drive, frame 447T, variable speed, washdown","TYPE TC1 ; ID# L08 20077396-100R-02","6220-JC3","6313-JC3","100",890,"3/60/460",1,null,0,null,0,null,0]
[11,"KWPS-MTR-PUMP-01, MOTOR, PUMP #1, US Motors, vertical, direct drive, frame 447VP, variable speed, washdown","R0620085356-0001 R 0004","75BC03J3","65BC03J3","100",900,"3/60/460",2,null,0,null,0,null,0]
[12,"NFF-MTR-FAN-FAF-01, MOTOR, ODOR CONTROL FAN, 100 HP, GE Motors, hroizontal, belt drive, frame 405T, constant speed","5KS405SAA2003","6316ZC3","6316ZC3","100",1785,"3/60/460",1,null,0,null,0,null,0]
[13,"DWB-FAN-SULFSCRB-02, FAN, 54\",SULFIDE SCRUBBER STAGE #2,OLD BLDG. SRCE, Reliance, horizontal, belt drive, frame 444T, constant speed","ID# 01MAN92588 C001 FD","90BCO3J3OX","90BCO3J3OX","125",1785,"3/60/460",1,null,0,null,0,null,0]
[14,"PAF-MTR-BLWR-01, MOTOR, CENTRIFUGAL BLOWER, POST AERATION 1, 125 HP, Emerson Motors, horizontal, direct drive, frame 444TS, constant speed","TYPE TCE; ID# P01 30169340-0001 R 0003","6313-J/C3","6313-J/C3","125",3575,"3/60/460",1,null,0,null,0,null,0]
[15,"FMRL-MTR-PUMP-01, MOTOR, FOUR MILE RUN PUMP #1, TECO, vertical, direct drive, frame 5007C, variable speed","TYPE ASVA-TK001 S/N KED48220-1","6320/NU324","6320/NU324","150",585,"3/60/460",1,null,0,null,0,null,0]
[16,"DWB-MTR-CENT-01-200HP, MOTOR, #1 CENTRIFUGE BOWL, 200 HP, Magnetek, horizontal, direct drive, frame 447T, variable speed",355443,6322,6314,"200",1780,"3/60/460",1,null,0,null,0,null,0]
[17,"PAF-MTR-PUMP-PEW-01, MOTOR, PLANT EFFLUENT WATER PUMP #1, US Motors, vertical, direct drive, frame 449VP, variable speed, weatherproof","TYPE JVC14; ID# M03 20069556-100R-03","29426 EJ","6219-J/C3","250",1750,"3/60/460",1,null,0,null,0,null,0]
[18,"ASE1-MTR-L1, MOTOR, ACTIVATED SLUDGE EFFLUENT PUMP #1, US Motors, vertical, direct drive, frame 5811P, variable speed, weatherproof","TYPE JVE14; ID# D03 99030767-001R-0Z","6226-JC3","7228BCB",300,591,"3/60/460",1,null,0,null,0,null,0]
[19,"WWFF-MTR-PUMP-N5, MOTOR, N5 PUMP, WET WEATHER FILTRATION FACILITY, US Motors, vertical, direct drive, frame 5811P, variable speed, corro-duty","5811P JVC14 - P/N-20112242","","","400",720,"3/60/460",1,null,0,null,0,null,0]
[20,"WWFF-MTR-PUMP-N3, MOTOR, N3 PUMP, WET WEATHER FILTRATION FACILITY, US Motors Titan, vertical, direct drive, frame 1680P, variable speed, weatherproof","ORDER # 873-08512 I/D NO. J521504 54-02157-443","6320","7230","500",705,"3/60/460",1,null,0,null,0,null,0]
[21,"SBB-MTR-BLWR-05, MOTOR, BLWR #5, HIGH PRESSURE, US Motors Titan, horizontal open sleeve bearing, direct drive, frame 5012S, constant speed","REFRENCE ORDER# 30101494\nCUSTOMER PN - HH00236-003-MTRM","","","700",1780,"3/60/4000",1,null,0,null,0,null,0]
[22,"SBB-MTR-BLWR-03, MOTOR, BLWR #3, SWING, US Motors Titan, horizontal open sleeve bearing, direct drive, frame 5012MS, constant speed","REFRENCE ORDER# 30101496\nCUSTOMER PN - HH00236-005-MTRM","","","800",1750,"3/60/4000",1,null,0,null,0,null,0]
[23,"SBB-MTR-BLWR-01, MOTOR, BLWR #1, LOW PRESSURE, US Motors Titan, horizontal open sleeve bearing, direct drive, frame 5012MS, constant speed","REFRENCE ORDER# 30101488\nCUSTOMER PN - HH00236-001-MTRM","","","900",1780,"3/60/4000",1,null,0,null,0,null,0]
["SECTION III:   COMPLETE REWINDING MOTORS - PRICING PROVIDED SHALL INCLUDE ALL LABOR, MATERIALS AND INCIDENTAL EXPENSES NECESSARY TO COMPLETE THE WORK"]
["ITEM NO.","ITEM DESCRIPTION","MODEL","Motor Brg Shaft End","Motor Brg Oth End","HP","RPM","Ph/Hz/Volt","ESTIMATED ANNUAL USAGE","YEAR 1                                          UNIT PRICE","YEAR 1                                          EXTENDED PRICE","YEAR 2                                            UNIT PRICE","YEAR 2                                            EXTENDED PRICE","TOTAL UNIT","TOTAL EXTENDED PRICE"]
[]
[1,"SAT1-MIXR-A-NORTH, SEC AERATION TANK MIXER-01 A-PASS S, METER 53012, Siemens, horizontal, direct drive, frame 213T, constant speed, weatherproof","MD000637","6308-ZZ","6308-ZZ","7.5",1740,"3/60/460",5,null,{"$f":"SUM(I63*J63)","v":0},null,{"$f":"SUM(I63*L63)","v":0},null,{"$f":"SUM(I63*N63)","v":0}]
[2,"SAT1-MIXR-A-SOUTH, SEC AERATION TANK MIXER-01 A-PASS N, METER 53011, Siemens, horizontal, direct drive, frame 215T, constant speed, weatherproof","MD000638","40BC02JP3","30BC02JP3","10",1740,"3/60/460",3,null,{"$f":"SUM(I64*J64)","v":0},null,{"$f":"SUM(I64*L64)","v":0},null,{"$f":"SUM(I64*N64)","v":0}]
[3,"DWB-DRIVE-BINBTTM-03A, DRIVE, DEWATERING BIN BOTTOM CONV, #3 WEST SCREW, Baldor, horizontal, constant torque, belt drive, frame 326-TZ, variable speed","M12N042W693Gl","BG6312B03","BG6311B03","15",1200,"3/60/460",3,null,0,null,0,null,0]
[4,"DWB-FAN-AMMONIASCRB-01, FAN, 30\",  AMMONIA SCRUBBER #1, TECO Westinghouse, horizontal, belt drive, frame256T, constant speed","NP0204","45BC03J30X","45BC03J30X","20",1760,"3/60/460",1,null,0,null,0,null,0]
[5,"PTB-PUMP-GRIT-02, PUMP, PTB GRIT #2, US Motors, horizontal, belt drive, frame 284T, constant speed","7970","6310-2Z-J/C3","6210-2Z-J/C3","25",1775,"3/60/460",1,null,0,null,0,null,0]
[6,"DWB-MTR-CENT-01-40HP, MOTOR, #1 CENTRIFUGE SCROLL 40 HP, Magnetek, horizontal, belt drive, frame 324T, variable speed","CJB5S","312SF","210SF","40",1770,"3/60/460",1,null,0,null,0,null,0]
[7,"WIN-MTR-PUMP-01, MOTOR, PUMP #1, WINDY RUN PUMP STATION, US Motors, vertical, direct drive, frame 326VP, variable speed, washdown","G42244","6312-J/C3","6211-2Z-J","50",1770,"3/60/230-460",2,null,0,null,0,null,0]
[8,"RRPS-MTR-PUMP-01, MOTOR, PUMP #1, US Motors, vertical, direct drive, frame 444VP, variable speed, washdown","R0620085377-0001-R0002","75BC03J3/6314-J","65BC03J3/6214-2Z-J","75",895,"3/60/460",1,null,0,null,0,null,0]
[9,"FEQ-MTR-PUMP-01, MOTOR, FLOW EQUALIZATION PUMP #1, Toshiba, horizontal, direct drive, frame 405T, variable speed, weatherproof","GJ4075Q1DEHH","6317C3","6313C3","75",1180,"3/60/460",2,null,0,null,0,null,0]
[10,"WSPSB-MTR-PUMP-RAS-07, MOTOR, RAS PUMP #7, US Motors, horizontal, direct drive, frame 447T, variable speed, washdown","TYPE TC1 ; ID# L08 20077396-100R-02","6220-JC3","6313-JC3","100",890,"3/60/460",1,null,0,null,0,null,0]
[11,"KWPS-MTR-PUMP-01, MOTOR, PUMP #1, US Motors, vertical, direct drive, frame 447VP, variable speed, washdown","R0620085356-0001 R 0004","75BC03J3","65BC03J3","100",900,"3/60/460",2,null,0,null,0,null,0]
[12,"NFF-MTR-FAN-FAF-01, MOTOR, ODOR CONTROL FAN, 100 HP, GE Motors, hroizontal, belt drive, frame 405T, constant speed","5KS405SAA2003","6316ZC3","6316ZC3","100",1785,"3/60/460",1,null,0,null,0,null,0]
[13,"DWB-FAN-SULFSCRB-02, FAN, 54\",SULFIDE SCRUBBER STAGE #2,OLD BLDG. SRCE, Reliance, horizontal, belt drive, frame 444T, constant speed","ID# 01MAN92588 C001 FD","90BCO3J3OX","90BCO3J3OX","125",1785,"3/60/460",1,null,0,null,0,null,0]
[14,"PAF-MTR-BLWR-01, MOTOR, CENTRIFUGAL BLOWER, POST AERATION 1, 125 HP, Emerson Motors, horizontal, direct drive, frame 444TS, constant speed","TYPE TCE; ID# P01 30169340-0001 R 0003","6313-J/C3","6313-J/C3","125",3575,"3/60/460",1,null,0,null,0,null,0]
[15,"FMRL-MTR-PUMP-01, MOTOR, FOUR MILE RUN PUMP #1, TECO, vertical, direct drive, frame 5007C, variable speed","TYPE ASVA-TK001 S/N KED48220-1","6320/NU324","6320/NU324","150",585,"3/60/460",1,null,0,null,0,null,0]
[16,"DWB-MTR-CENT-01-200HP, MOTOR, #1 CENTRIFUGE BOWL, 200 HP, Magnetek, horizontal, direct drive, frame 447T, variable speed",355443,6322,6314,"200",1780,"3/60/460",1,null,0,null,0,null,0]
[17,"PAF-MTR-PUMP-PEW-01, MOTOR, PLANT EFFLUENT WATER PUMP #1, US Motors, vertical, direct drive, frame 449VP, variable speed, weatherproof","TYPE JVC14; ID# M03 20069556-100R-03","29426 EJ","6219-J/C3","250",1750,"3/60/460",1,null,0,null,0,null,0]
[18,"ASE1-MTR-L1, MOTOR, ACTIVATED SLUDGE EFFLUENT PUMP #1, US Motors, vertical, direct drive, frame 5811P, variable speed, weatherproof","TYPE JVE14; ID# D03 99030767-001R-0Z","6226-JC3","7228BCB",300,591,"3/60/460",1,null,0,null,0,null,0]
[19,"WWFF-MTR-PUMP-N5, MOTOR, N5 PUMP, WET WEATHER FILTRATION FACILITY, US Motors, vertical, direct drive, frame 5811P, variable speed, corro-duty","5811P JVC14 - P/N-20112242","","","400",720,"3/60/460",1,null,0,null,0,null,0]
[20,"WWFF-MTR-PUMP-N3, MOTOR, N3 PUMP, WET WEATHER FILTRATION FACILITY, US Motors Titan, vertical, direct drive, frame 1680P, variable speed, weatherproof","ORDER # 873-08512 I/D NO. J521504 54-02157-443","6320","7230","500",705,"3/60/460",1,null,0,null,0,null,0]
[21,"SBB-MTR-BLWR-05, MOTOR, BLWR #5, HIGH PRESSURE, US Motors Titan, horizontal open sleeve bearing, direct drive, frame 5012S, constant speed","REFRENCE ORDER# 30101494\nCUSTOMER PN - HH00236-003-MTRM","","","700",1780,"3/60/4000",1,null,0,null,0,null,0]
[22,"SBB-MTR-BLWR-03, MOTOR, BLWR #3, SWING, US Motors Titan, horizontal open sleeve bearing, direct drive, frame 5012MS, constant speed","REFRENCE ORDER# 30101496\nCUSTOMER PN - HH00236-005-MTRM","","","800",1750,"3/60/4000",1,null,0,null,0,null,0]
[23,"SBB-MTR-BLWR-01, MOTOR, BLWR #1, LOW PRESSURE, US Motors Titan, horizontal open sleeve bearing, direct drive, frame 5012MS, constant speed","REFRENCE ORDER# 30101488\nCUSTOMER PN - HH00236-001-MTRM","","","900",1780,"3/60/4000",1,null,0,null,0,null,0]
["SECTION IV:   ADDITIONAL SERVICES - ITEMS IN THIS SECTION ARE NOT APPLICABLE TO THE INSPECTION/TESTING, RECONDITIONING, OR COMPLETE REWINDING OF THE MOTORS ITEMIZED ABOVE IN SECTIONS I, II, AND III."]
["LABOR RATES - PRICING PROVIDED SHALL BE *HOURLY RATES* FOR ADDITIONAL REPAIRS.   ITEMS IN THIS SECTION ARE NOT TO THE INSPECTION/TESTING, RECONDITIONING, OR COMPLETE REWINDING OF THE MOTORS ITEMIZED ABOVE IN SECTIONS I, II, AND III."]
["ITEM NO.","ITEM DESCRIPTION",{"$nulls":6},"ESTIMATED ANNUAL USAGE","YEAR 1                                          UNIT PRICE","YEAR 1                                          EXTENDED PRICE","YEAR 2                                            UNIT PRICE","YEAR 2                                            EXTENDED PRICE","TOTAL UNIT","TOTAL EXTENDED PRICE"]
[28,"Monday - Friday (7:00 a.m. - 5:00 p.m.)",{"$nulls":6},200,null,{"$f":"SUM(I89*J89)","v":0},null,{"$f":"SUM(I89*L89)","v":0},null,{"$f":"SUM(I89*N89)","v":0}]
[28,"Monday - Friday (after 5:00 p.m.)",{"$nulls":6},0,null,{"$f":"SUM(I90*J90)","v":0},null,{"$f":"SUM(I90*L90)","v":0},null,{"$f":"SUM(I90*N90)","v":0}]
[28,"Saturday & Sunday",{"$nulls":6},0,null,{"$f":"SUM(I91*J91)","v":0},null,{"$f":"SUM(I91*L91)","v":0},null,{"$f":"SUM(I91*N91)","v":0}]
[28,"County Holiday Rate",{"$nulls":6},0,null,{"$f":"SUM(I92*J92)","v":0},null,{"$f":"SUM(I92*L92)","v":0},null,{"$f":"SUM(I92*N92)","v":0}]
["SECTION V:   PARTS -  BIDDERS SHALL PROVIDE THE PERCENTAGE DISCOUNT FROM MANUFACTURER'S LIST PRICE BELOW. THE PERCENTAGE LISTED BELOW SHALL REMAIN FIRM FOR THE DURATION OF THE CONTRACT"]
[29,"Percentage Discount (%) off list price"]
["TOTAL BID PER YEAR",{"$nulls":9},{"$f":"SUM(K11:K33,K37:K59,K63:K85,K89:K89)","v":0},null,{"$f":"SUM(M11:M33,M37:M59,M63:M85,M89:M89)","v":0},null,{"$f":"SUM(O11:O33,O37:O59,O63:O85,O89:O89)","v":0}]
["TOTAL BID",{"$nulls":11},{"$f":"SUM(K95,M95,O95)","v":0}]